[Event "*** Titled Tuesday Blitz"]
[Site "Chess.com"]
[Date "2021.03.02"]
[Round "4"]
[White "AldokhinIvan"]
[Black "ChessQueen"]
[Result "0-1"]
[WhiteElo "2523"]
[BlackElo "2733"]
[TimeControl "180+1"]
[EndTime "10:38:34 PST"]
[Termination "ChessQueen won by resignation"]

1. e4 {[%clk 0:02:49]} 1... c6 {[%clk 0:02:58.1]} 2. Nc3 {[%clk 0:02:48.4]} 2...
d5 {[%clk 0:02:57.6]} 3. d4 {[%clk 0:02:48.3]} 3... dxe4 {[%clk 0:02:57.3]} 4.
Nxe4 {[%clk 0:02:48.1]} 4... Nf6 {[%clk 0:02:57.9]} 5. Nxf6+ {[%clk 0:02:48.1]}
5... exf6 {[%clk 0:02:58.8]} 6. c3 {[%clk 0:02:48]} 6... Bd6 {[%clk 0:02:59.4]}
7. Bd3 {[%clk 0:02:48.3]} 7... O-O {[%clk 0:03:00]} 8. Qc2 {[%clk 0:02:48.1]}
8... h5 {[%clk 0:02:57]} 9. Ne2 {[%clk 0:02:46.1]} 9... Re8 {[%clk 0:02:56.1]}
10. O-O {[%clk 0:02:41.3]} 10... Nd7 {[%clk 0:02:50.2]} 11. Ng3 {[%clk
0:02:26.8]} 11... Bxg3 {[%clk 0:02:42.9]} 12. hxg3 {[%clk 0:02:20]} 12... Nf8
{[%clk 0:02:42.2]} 13. Bd2 {[%clk 0:02:14.5]} 13... Bg4 {[%clk 0:02:39.8]} 14.
Rae1 {[%clk 0:01:49.6]} 14... Qd7 {[%clk 0:02:38.5]} 15. f3 {[%clk 0:01:47.8]}
15... Be6 {[%clk 0:02:37.8]} 16. Re2 {[%clk 0:01:45.3]} 16... Qc7 {[%clk
0:02:22]} 17. Bf4 {[%clk 0:01:43.5]} 17... Qa5 {[%clk 0:02:21.2]} 18. a3 {[%clk
0:01:34.3]} 18... c5 {[%clk 0:02:10.5]} 19. b4 {[%clk 0:01:28.5]} 19... cxb4
{[%clk 0:02:07.9]} 20. axb4 {[%clk 0:01:28.2]} 20... Qb6 {[%clk 0:02:06.3]} 21.
Be3 {[%clk 0:01:21.2]} 21... Qc7 {[%clk 0:02:05.3]} 22. Bf4 {[%clk 0:01:16.1]}
22... Qb6 {[%clk 0:02:04.7]} 23. Kh2 {[%clk 0:00:52]} 23... Rac8 {[%clk
0:02:02.4]} 24. Rfe1 {[%clk 0:00:52.2]} 24... Red8 {[%clk 0:02:00.9]} 25. Re3
{[%clk 0:00:42.3]} 25... a5 {[%clk 0:01:53.9]} 26. bxa5 {[%clk 0:00:29.3]} 26...
Qxa5 {[%clk 0:01:54.1]} 27. Be4 {[%clk 0:00:29.2]} 27... h4 {[%clk 0:01:49.3]}
28. gxh4 {[%clk 0:00:28]} 28... Qh5 {[%clk 0:01:49.3]} 29. Bg3 {[%clk
0:00:26.2]} 29... f5 {[%clk 0:01:48.4]} 30. Bxb7 {[%clk 0:00:25.1]} 30... f4
{[%clk 0:01:48.9]} 31. Bxc8 {[%clk 0:00:20]} 31... fxg3+ {[%clk 0:01:47.3]} 32.
Kxg3 {[%clk 0:00:20.5]} 32... Rxc8 {[%clk 0:01:47.8]} 33. Re5 {[%clk 0:00:21.4]}
33... Qh6 {[%clk 0:01:36.4]} 34. d5 {[%clk 0:00:21.5]} 34... Ng6 {[%clk
0:01:35.6]} 35. R5e4 {[%clk 0:00:17.6]} 35... Bxd5 {[%clk 0:01:27.3]} 36. Re8+
{[%clk 0:00:16]} 36... Rxe8 {[%clk 0:01:27.8]} 37. Rxe8+ {[%clk 0:00:16.3]}
37... Kh7 {[%clk 0:01:28]} 38. Qa4 {[%clk 0:00:17.1]} 38... Bc6 {[%clk
0:01:22.9]} 0-1

[Event "*** Titled Tuesday Blitz"]
[Site "Chess.com"]
[Date "2021.03.02"]
[Round "4"]
[White "heyjohnnypark"]
[Black "Snowflake"]
[Result "1-0"]
[WhiteElo "2605"]
[BlackElo "2352"]
[TimeControl "180+1"]
[EndTime "10:38:36 PST"]
[Termination "heyjohnnypark won by resignation"]

1. d4 {[%clk 0:03:00.9]} 1... Nf6 {[%clk 0:02:58]} 2. Nf3 {[%clk 0:03:01.4]}
2... d6 {[%clk 0:02:58.1]} 3. c4 {[%clk 0:03:00.8]} 3... Bf5 {[%clk 0:02:57.8]}
4. Nc3 {[%clk 0:03:01.5]} 4... Ne4 {[%clk 0:02:55.2]} 5. Nxe4 {[%clk 0:02:53.9]}
5... Bxe4 {[%clk 0:02:56.1]} 6. e3 {[%clk 0:02:54.3]} 6... c6 {[%clk 0:02:47.6]}
7. Be2 {[%clk 0:02:52.9]} 7... g6 {[%clk 0:02:46.2]} 8. O-O {[%clk 0:02:50.3]}
8... Bg7 {[%clk 0:02:45.3]} 9. b3 {[%clk 0:02:50.9]} 9... O-O {[%clk 0:02:44.1]}
10. Bb2 {[%clk 0:02:51.5]} 10... Nd7 {[%clk 0:02:41.8]} 11. Nd2 {[%clk
0:02:49.9]} 11... Bf5 {[%clk 0:02:40.4]} 12. e4 {[%clk 0:02:49.7]} 12... Be6
{[%clk 0:02:40.1]} 13. Qc2 {[%clk 0:02:40.3]} 13... Nf6 {[%clk 0:02:37.2]} 14.
d5 {[%clk 0:02:34]} 14... Bd7 {[%clk 0:02:35.7]} 15. dxc6 {[%clk 0:02:27.4]}
15... Bxc6 {[%clk 0:02:36.6]} 16. Rfe1 {[%clk 0:02:19.4]} 16... Qc7 {[%clk
0:02:22.9]} 17. Bf1 {[%clk 0:02:13.4]} 17... Rae8 {[%clk 0:02:17.4]} 18. Rad1
{[%clk 0:02:11.1]} 18... Rd8 {[%clk 0:02:16.9]} 19. Nb1 {[%clk 0:02:04.7]} 19...
Rfe8 {[%clk 0:02:11.7]} 20. Nc3 {[%clk 0:02:04.2]} 20... Qb8 {[%clk 0:02:09.9]}
21. Nd5 {[%clk 0:01:59.3]} 21... Nxd5 {[%clk 0:02:04.2]} 22. cxd5 {[%clk
0:01:52.2]} 22... Bd7 {[%clk 0:02:02.7]} 23. Bxg7 {[%clk 0:01:52.5]} 23... Kxg7
{[%clk 0:02:03.1]} 24. Qb2+ {[%clk 0:01:46.4]} 24... Kg8 {[%clk 0:02:02.7]} 25.
e5 {[%clk 0:01:43.7]} 25... dxe5 {[%clk 0:02:01.5]} 26. Rxe5 {[%clk 0:01:44.6]}
26... Bf5 {[%clk 0:01:55.9]} 27. Rde1 {[%clk 0:01:39.3]} 27... Qd6 {[%clk
0:01:46.5]} 28. Qd4 {[%clk 0:01:33.7]} 28... a6 {[%clk 0:01:45]} 29. R1e3 {[%clk
0:01:25.9]} 29... f6 {[%clk 0:01:37]} 30. Rxf5 {[%clk 0:01:24.3]} 30... gxf5
{[%clk 0:01:37.9]} 31. Qh4 {[%clk 0:01:00.6]} 31... Rf8 {[%clk 0:01:24.5]} 32.
Re6 {[%clk 0:00:55.7]} 32... Qxd5 {[%clk 0:01:03.2]} 33. Bc4 {[%clk 0:00:53.8]}
33... Qxc4 {[%clk 0:00:35.2]} 34. Qxc4 {[%clk 0:00:53.8]} 34... Rd1+ {[%clk
0:00:36.1]} 35. Re1+ {[%clk 0:00:53.9]} 1-0

[Event "*** Titled Tuesday Blitz"]
[Site "Chess.com"]
[Date "2021.03.02"]
[Round "4"]
[White "miredenizdogan"]
[Black "erdni1993"]
[Result "1-0"]
[WhiteElo "2293"]
[BlackElo "2424"]
[TimeControl "180+1"]
[EndTime "10:38:37 PST"]
[Termination "miredenizdogan won by resignation"]

1. d4 {[%clk 0:03:00.9]} 1... Nf6 {[%clk 0:02:59.2]} 2. c4 {[%clk 0:03:01.1]}
2... e6 {[%clk 0:02:59.1]} 3. Nc3 {[%clk 0:02:59.8]} 3... c5 {[%clk 0:02:59.6]}
4. e3 {[%clk 0:02:59.6]} 4... d5 {[%clk 0:02:57.8]} 5. Nge2 {[%clk 0:02:59.7]}
5... dxc4 {[%clk 0:02:57.7]} 6. Ng3 {[%clk 0:02:53.9]} 6... Nc6 {[%clk
0:02:57.8]} 7. dxc5 {[%clk 0:02:31.6]} 7... Qxd1+ {[%clk 0:02:52.4]} 8. Kxd1
{[%clk 0:02:31.7]} 8... Bxc5 {[%clk 0:02:48.9]} 9. Bxc4 {[%clk 0:02:27.6]} 9...
Bd7 {[%clk 0:02:49]} 10. Ke2 {[%clk 0:02:25.6]} 10... O-O-O {[%clk 0:02:47.4]}
11. a3 {[%clk 0:02:23.4]} 11... Ne5 {[%clk 0:02:33.4]} 12. Ba2 {[%clk
0:02:18.2]} 12... Bc6 {[%clk 0:02:33.3]} 13. b4 {[%clk 0:02:17.1]} 13... Bb6
{[%clk 0:02:29.7]} 14. f3 {[%clk 0:02:13.3]} 14... h5 {[%clk 0:02:22.1]} 15. b5
{[%clk 0:02:05.7]} 15... h4 {[%clk 0:02:18.1]} 16. bxc6 {[%clk 0:02:02.5]} 16...
hxg3 {[%clk 0:02:17.4]} 17. cxb7+ {[%clk 0:02:02.8]} 17... Kxb7 {[%clk
0:02:17.1]} 18. h3 {[%clk 0:02:02.4]} 18... Nd3 {[%clk 0:02:08.9]} 19. Bd2
{[%clk 0:01:58.9]} 19... Nf2 {[%clk 0:02:06.9]} 20. Rhb1 {[%clk 0:01:57.7]}
20... Rd7 {[%clk 0:01:59.5]} 21. a4 {[%clk 0:01:56.3]} 21... Rhd8 {[%clk
0:01:58.5]} 22. Be1 {[%clk 0:01:53.8]} 22... Ka8 {[%clk 0:01:43.4]} 23. Bc4
{[%clk 0:01:46.7]} 23... Rc7 {[%clk 0:01:40.8]} 24. Ba6 {[%clk 0:01:27.5]} 24...
Nd5 {[%clk 0:01:31]} 25. Nxd5 {[%clk 0:01:17.6]} 25... Rxd5 {[%clk 0:01:31.9]}
26. a5 {[%clk 0:01:16.8]} 26... Rc2+ {[%clk 0:01:29]} 27. Kf1 {[%clk 0:01:15.8]}
27... Nd3 {[%clk 0:00:32.9]} 28. axb6 {[%clk 0:01:11.7]} 28... Nxe1 {[%clk
0:00:31]} 29. bxa7 {[%clk 0:01:05.7]} 29... Rd7 {[%clk 0:00:15.9]} 30. Bb7+
{[%clk 0:00:56.5]} 30... Rxb7 {[%clk 0:00:13.6]} 31. Rxb7 {[%clk 0:00:57.4]} 1-0

[Event "*** Titled Tuesday Blitz"]
[Site "Chess.com"]
[Date "2021.03.02"]
[Round "4"]
[White "Kopytkin"]
[Black "manipun1"]
[Result "1-0"]
[WhiteElo "2361"]
[BlackElo "2221"]
[TimeControl "180+1"]
[EndTime "10:38:38 PST"]
[Termination "Kopytkin won by resignation"]

1. e4 {[%clk 0:02:26]} 1... d6 {[%clk 0:02:58.6]} 2. d4 {[%clk 0:02:25.7]} 2...
Nf6 {[%clk 0:02:58.6]} 3. Nc3 {[%clk 0:02:24.6]} 3... e5 {[%clk 0:02:58.5]} 4.
dxe5 {[%clk 0:02:22.6]} 4... dxe5 {[%clk 0:02:58.5]} 5. Qxd8+ {[%clk 0:02:23.2]}
5... Kxd8 {[%clk 0:02:59.1]} 6. f4 {[%clk 0:02:19.5]} 6... Bb4 {[%clk
0:02:56.5]} 7. Bd2 {[%clk 0:02:12.1]} 7... exf4 {[%clk 0:02:51.6]} 8. e5 {[%clk
0:02:11.7]} 8... Bxc3 {[%clk 0:02:49.3]} 9. Bxc3 {[%clk 0:02:11.2]} 9... Ne4
{[%clk 0:02:46.9]} 10. O-O-O+ {[%clk 0:02:10.6]} 10... Bd7 {[%clk 0:02:46.8]}
11. e6 {[%clk 0:02:08.5]} 11... fxe6 {[%clk 0:02:43.5]} 12. Bxg7 {[%clk
0:02:07.7]} 12... Rg8 {[%clk 0:02:41.1]} 13. Bd4 {[%clk 0:02:08]} 13... Nc6
{[%clk 0:02:40]} 14. Nh3 {[%clk 0:02:03.6]} 14... e5 {[%clk 0:02:36.9]} 15. Bc4
{[%clk 0:01:47.9]} 15... Rxg2 {[%clk 0:02:27.1]} 16. Nxf4 {[%clk 0:01:06]} 16...
Rg4 {[%clk 0:01:52.5]} 17. Ne6+ {[%clk 0:00:41.8]} 17... Bxe6 {[%clk 0:01:45.5]}
18. Bxe6 {[%clk 0:00:41.4]} 18... Nxd4 {[%clk 0:01:37.3]} 19. Bxg4 {[%clk
0:00:40.6]} 19... Nf2 {[%clk 0:01:37.4]} 20. Rhf1 {[%clk 0:00:36.2]} 20... Ke7
{[%clk 0:01:33]} 21. Rxf2 {[%clk 0:00:35.8]} 21... Rg8 {[%clk 0:01:29.6]} 22. h3
{[%clk 0:00:35.2]} 22... Rg5 {[%clk 0:01:23.4]} 23. c3 {[%clk 0:00:34.3]} 23...
Ne6 {[%clk 0:01:20]} 24. Bxe6 {[%clk 0:00:33.6]} 24... Kxe6 {[%clk 0:01:19.8]}
25. Re1 {[%clk 0:00:31.9]} 25... Rh5 {[%clk 0:01:19.1]} 26. Rfe2 {[%clk
0:00:30.4]} 26... c5 {[%clk 0:01:18]} 27. Re3 {[%clk 0:00:30.5]} 27... c4 {[%clk
0:01:17.9]} 28. Kc2 {[%clk 0:00:29.9]} 28... b5 {[%clk 0:01:18]} 29. b3 {[%clk
0:00:28.9]} 29... cxb3+ {[%clk 0:01:17]} 30. Kxb3 {[%clk 0:00:28.7]} 30... a6
{[%clk 0:01:17.9]} 31. Kb4 {[%clk 0:00:28.5]} 31... Kd5 {[%clk 0:01:17.8]} 32.
Rd1+ {[%clk 0:00:18.9]} 32... Kc6 {[%clk 0:01:16.8]} 33. Rd8 {[%clk 0:00:18.3]}
33... Rh4+ {[%clk 0:01:15.2]} 34. Kb3 {[%clk 0:00:18.6]} 34... e4 {[%clk
0:01:14.6]} 35. Re8 {[%clk 0:00:18.6]} 35... Kd5 {[%clk 0:01:14]} 36. Rd8+
{[%clk 0:00:18.5]} 36... Kc5 {[%clk 0:01:13.9]} 37. Re8 {[%clk 0:00:17.3]} 37...
Kd5 {[%clk 0:01:13.7]} 38. Ra8 {[%clk 0:00:17.5]} 38... Rf4 {[%clk 0:01:11]} 39.
Rxa6 {[%clk 0:00:17.3]} 39... Rf2 {[%clk 0:01:10.4]} 40. Rb6 {[%clk 0:00:15.2]}
1-0

[Event "*** Titled Tuesday Blitz"]
[Site "Chess.com"]
[Date "2021.03.02"]
[Round "4"]
[White "Mazetovic"]
[Black "GOGIEFF"]
[Result "0-1"]
[WhiteElo "2726"]
[BlackElo "2901"]
[TimeControl "180+1"]
[EndTime "10:38:42 PST"]
[Termination "GOGIEFF won by checkmate"]

1. e4 {[%clk 0:03:00.9]} 1... c5 {[%clk 0:03:00]} 2. Nf3 {[%clk 0:03:00.6]} 2...
e6 {[%clk 0:03:00.3]} 3. c4 {[%clk 0:02:59]} 3... Nc6 {[%clk 0:02:56.1]} 4. Nc3
{[%clk 0:02:58.9]} 4... Nd4 {[%clk 0:02:53.1]} 5. Nxd4 {[%clk 0:02:58.1]} 5...
cxd4 {[%clk 0:02:54]} 6. Ne2 {[%clk 0:02:58.4]} 6... Bc5 {[%clk 0:02:53.9]} 7.
Ng3 {[%clk 0:02:55.1]} 7... Ne7 {[%clk 0:02:51.1]} 8. Bd3 {[%clk 0:02:55]} 8...
O-O {[%clk 0:02:48.4]} 9. Bc2 {[%clk 0:02:54.8]} 9... a6 {[%clk 0:02:47.2]} 10.
O-O {[%clk 0:02:54.2]} 10... b5 {[%clk 0:02:47.4]} 11. cxb5 {[%clk 0:02:54]}
11... axb5 {[%clk 0:02:48.3]} 12. d3 {[%clk 0:02:54.2]} 12... d5 {[%clk
0:02:40.4]} 13. Bb3 {[%clk 0:02:50.5]} 13... Bb7 {[%clk 0:02:39.7]} 14. e5
{[%clk 0:02:45.4]} 14... Qb6 {[%clk 0:02:21.6]} 15. Qg4 {[%clk 0:02:37.9]} 15...
b4 {[%clk 0:02:15.8]} 16. h4 {[%clk 0:02:27]} 16... Kh8 {[%clk 0:02:08.3]} 17.
Nh5 {[%clk 0:02:24.1]} 17... Nf5 {[%clk 0:01:59.5]} 18. Bg5 {[%clk 0:02:11.8]}
18... h6 {[%clk 0:01:50.5]} 19. Bf4 {[%clk 0:01:48.8]} 19... Rg8 {[%clk
0:01:48.8]} 20. Rac1 {[%clk 0:01:46.2]} 20... Be7 {[%clk 0:01:47.6]} 21. g3
{[%clk 0:01:41.1]} 21... Rac8 {[%clk 0:01:40.4]} 22. Rxc8 {[%clk 0:01:32.9]}
22... Rxc8 {[%clk 0:01:34.7]} 23. Qe2 {[%clk 0:01:21]} 23... Ba6 {[%clk
0:01:29]} 24. Qd2 {[%clk 0:01:20.5]} 24... Kh7 {[%clk 0:01:26.1]} 25. Bd1 {[%clk
0:00:56.8]} 25... Qc6 {[%clk 0:01:17.8]} 26. Be2 {[%clk 0:00:48.5]} 26... Qa4
{[%clk 0:01:11.5]} 27. b3 {[%clk 0:00:39.6]} 27... Qe8 {[%clk 0:01:03.1]} 28.
Bg4 {[%clk 0:00:37.9]} 28... Rc3 {[%clk 0:00:59]} 29. Bxf5+ {[%clk 0:00:21.5]}
29... exf5 {[%clk 0:00:59.9]} 30. e6 {[%clk 0:00:19.8]} 30... fxe6 {[%clk
0:00:58.7]} 31. Re1 {[%clk 0:00:19.5]} 31... Qxh5 {[%clk 0:00:58.1]} 32. Rxe6
{[%clk 0:00:19.2]} 32... Rxd3 {[%clk 0:00:58.3]} 33. Qc2 {[%clk 0:00:18]} 33...
Rd1+ {[%clk 0:00:57.7]} 34. Kg2 {[%clk 0:00:17.8]} 34... Bd3 {[%clk 0:00:57]}
35. Qc7 {[%clk 0:00:14.5]} 35... Be4+ {[%clk 0:00:57]} 36. Kh2 {[%clk
0:00:13.9]} 36... Rh1# {[%clk 0:00:56.2]} 0-1

[Event "*** Titled Tuesday Blitz"]
[Site "Chess.com"]
[Date "2021.03.02"]
[Round "4"]
[White "dodorox"]
[Black "kidagent"]
[Result "0-1"]
[WhiteElo "2155"]
[BlackElo "2318"]
[TimeControl "180+1"]
[EndTime "10:38:44 PST"]
[Termination "kidagent won on time"]

1. d4 {[%clk 0:02:57.3]} 1... d5 {[%clk 0:02:59.5]} 2. c4 {[%clk 0:02:56.1]}
2... c6 {[%clk 0:02:59.9]} 3. cxd5 {[%clk 0:02:55.8]} 3... cxd5 {[%clk
0:02:59.9]} 4. Nc3 {[%clk 0:02:56.5]} 4... Nf6 {[%clk 0:02:59]} 5. Bf4 {[%clk
0:02:56.8]} 5... a6 {[%clk 0:02:56]} 6. e3 {[%clk 0:02:55.5]} 6... Nc6 {[%clk
0:02:54.3]} 7. Bd3 {[%clk 0:02:55.8]} 7... e6 {[%clk 0:02:47.7]} 8. Nf3 {[%clk
0:02:55.4]} 8... Bd6 {[%clk 0:02:48.1]} 9. Bxd6 {[%clk 0:02:54.7]} 9... Qxd6
{[%clk 0:02:47.7]} 10. O-O {[%clk 0:02:55.3]} 10... O-O {[%clk 0:02:47.7]} 11.
Qe2 {[%clk 0:02:29.1]} 11... b5 {[%clk 0:02:46.6]} 12. a4 {[%clk 0:02:29.3]}
12... b4 {[%clk 0:02:45.4]} 13. Na2 {[%clk 0:02:29.9]} 13... a5 {[%clk
0:02:44.9]} 14. Nc1 {[%clk 0:02:29.7]} 14... Bb7 {[%clk 0:02:37.9]} 15. Nb3
{[%clk 0:02:29.7]} 15... Rae8 {[%clk 0:02:26.9]} 16. Rfc1 {[%clk 0:02:23]} 16...
Ne4 {[%clk 0:02:23.8]} 17. Bxe4 {[%clk 0:02:12.9]} 17... dxe4 {[%clk 0:02:23.5]}
18. Nfd2 {[%clk 0:02:13.5]} 18... f5 {[%clk 0:02:21.9]} 19. Rc5 {[%clk 0:01:56]}
19... e5 {[%clk 0:02:16.7]} 20. Nc4 {[%clk 0:01:49.6]} 20... Qg6 {[%clk
0:02:04.4]} 21. Nxe5 {[%clk 0:01:27.1]} 21... Nxe5 {[%clk 0:02:03.6]} 22. dxe5
{[%clk 0:01:19.6]} 22... f4 {[%clk 0:01:56.9]} 23. exf4 {[%clk 0:01:13.8]} 23...
Rxf4 {[%clk 0:01:57.4]} 24. Nxa5 {[%clk 0:01:03]} 24... Ba8 {[%clk 0:01:53.7]}
25. Qe3 {[%clk 0:00:23.9]} 25... Rf3 {[%clk 0:01:48.3]} 26. Qe2 {[%clk
0:00:19.9]} 26... e3 {[%clk 0:01:34.4]} 27. g3 {[%clk 0:00:12.9]} 27... exf2+
{[%clk 0:01:26.5]} 28. Kf1 {[%clk 0:00:10.7]} 28... Be4 {[%clk 0:01:21.5]} 29.
Rd1 {[%clk 0:00:09.1]} 29... Ref8 {[%clk 0:01:17.2]} 30. Qc4+ {[%clk 0:00:08]}
30... Kh8 {[%clk 0:01:15.2]} 31. Rc8 {[%clk 0:00:08.2]} 31... Qg4 {[%clk
0:01:03.1]} 32. Rxf8+ {[%clk 0:00:06.5]} 32... Rxf8 {[%clk 0:01:02.4]} 0-1

[Event "*** Titled Tuesday Blitz"]
[Site "Chess.com"]
[Date "2021.03.02"]
[Round "4"]
[White "Evachess2006"]
[Black "Arvids_Andrejevs"]
[Result "0-1"]
[WhiteElo "1602"]
[BlackElo "2366"]
[TimeControl "180+1"]
[EndTime "10:38:45 PST"]
[Termination "Arvids_Andrejevs won on time"]

1. e4 {[%clk 0:03:00.9]} 1... e5 {[%clk 0:02:59.8]} 2. Nf3 {[%clk 0:02:34.9]}
2... Nc6 {[%clk 0:02:59.1]} 3. Bc4 {[%clk 0:02:24.7]} 3... Nf6 {[%clk
0:02:57.3]} 4. d3 {[%clk 0:02:23.1]} 4... Be7 {[%clk 0:02:55.5]} 5. O-O {[%clk
0:02:14.2]} 5... O-O {[%clk 0:02:52.4]} 6. Bg5 {[%clk 0:02:11.9]} 6... d6 {[%clk
0:02:46.4]} 7. Nc3 {[%clk 0:01:42.9]} 7... Bg4 {[%clk 0:02:45.5]} 8. h3 {[%clk
0:01:41.9]} 8... Bh5 {[%clk 0:02:43.9]} 9. Bxf6 {[%clk 0:00:52.1]} 9... Bxf6
{[%clk 0:02:44.8]} 10. Kh1 {[%clk 0:00:25.3]} 10... Be7 {[%clk 0:02:27.4]} 11.
Nd5 {[%clk 0:00:23.8]} 11... Kh8 {[%clk 0:02:17.5]} 12. c3 {[%clk 0:00:23.3]}
12... a6 {[%clk 0:02:00.9]} 13. Ne3 {[%clk 0:00:20.6]} 13... Na5 {[%clk
0:01:56.7]} 14. b4 {[%clk 0:00:19.2]} 14... Nxc4 {[%clk 0:01:56.6]} 15. Nxc4
{[%clk 0:00:16.7]} 15... Bg5 {[%clk 0:01:49.7]} 16. Ne3 {[%clk 0:00:14.3]} 16...
Bxe3 {[%clk 0:01:44.2]} 17. fxe3 {[%clk 0:00:13.9]} 17... Qd7 {[%clk 0:01:40.8]}
18. Qe2 {[%clk 0:00:12.9]} 18... Rae8 {[%clk 0:01:35.2]} 19. Qf2 {[%clk
0:00:07]} 19... Bxf3 {[%clk 0:01:31.8]} 20. Qxf3 {[%clk 0:00:06.5]} 20... Re6
{[%clk 0:01:31.5]} 21. Qf5 {[%clk 0:00:04.9]} 21... g6 {[%clk 0:01:29.3]} 22.
Qg4 {[%clk 0:00:03.6]} 22... d5 {[%clk 0:01:27.9]} 23. exd5 {[%clk 0:00:03]}
23... Qxd5 {[%clk 0:01:28]} 24. Qc4 {[%clk 0:00:01.9]} 24... Qxc4 {[%clk
0:01:27.8]} 25. dxc4 {[%clk 0:00:02]} 25... Rc6 {[%clk 0:01:27.4]} 26. c5 {[%clk
0:00:01.7]} 26... b6 {[%clk 0:01:26.5]} 27. cxb6 {[%clk 0:00:01.9]} 27... cxb6
{[%clk 0:01:27]} 28. Rac1 {[%clk 0:00:02.3]} 28... b5 {[%clk 0:01:26.1]} 29. e4
{[%clk 0:00:02.6]} 29... Kg7 {[%clk 0:01:25.4]} 30. Rf3 {[%clk 0:00:03]} 30...
Rfc8 {[%clk 0:01:25.5]} 31. Rd3 {[%clk 0:00:02.9]} 31... f5 {[%clk 0:01:25]} 32.
Kg1 {[%clk 0:00:03.3]} 32... fxe4 {[%clk 0:01:24.6]} 33. Re3 {[%clk 0:00:03.9]}
33... Rc4 {[%clk 0:01:24.9]} 34. Kf2 {[%clk 0:00:04]} 34... Rxb4 {[%clk
0:01:25]} 35. cxb4 {[%clk 0:00:02.9]} 35... Rxc1 {[%clk 0:01:24.9]} 36. Rxe4
{[%clk 0:00:03.3]} 36... Rc4 {[%clk 0:01:22]} 37. Rxe5 {[%clk 0:00:02.5]} 37...
Rxb4 {[%clk 0:01:22.4]} 38. Re7+ {[%clk 0:00:02.9]} 38... Kf6 {[%clk 0:01:21.1]}
39. Rxh7 {[%clk 0:00:02.1]} 39... Rb2+ {[%clk 0:01:21.4]} 0-1

[Event "*** Titled Tuesday Blitz"]
[Site "Chess.com"]
[Date "2021.03.02"]
[Round "4"]
[White "politeplayer"]
[Black "MalyDominator"]
[Result "0-1"]
[WhiteElo "2235"]
[BlackElo "2488"]
[TimeControl "180+1"]
[EndTime "10:38:49 PST"]
[Termination "MalyDominator won on time"]

1. e4 {[%clk 0:03:00.9]} 1... c5 {[%clk 0:02:56.3]} 2. Nf3 {[%clk 0:03:00.9]}
2... d6 {[%clk 0:02:56.4]} 3. d4 {[%clk 0:03:00.8]} 3... cxd4 {[%clk 0:02:57.3]}
4. Nxd4 {[%clk 0:02:59.4]} 4... Nf6 {[%clk 0:02:57.4]} 5. Nc3 {[%clk 0:02:59.8]}
5... Nc6 {[%clk 0:02:57.6]} 6. Bg5 {[%clk 0:02:56.8]} 6... e6 {[%clk 0:02:57.8]}
7. Qd2 {[%clk 0:02:56]} 7... a6 {[%clk 0:02:58.3]} 8. O-O-O {[%clk 0:02:53.7]}
8... Bd7 {[%clk 0:02:58.5]} 9. f3 {[%clk 0:02:45.6]} 9... Be7 {[%clk 0:02:57.8]}
10. h4 {[%clk 0:02:43.9]} 10... h6 {[%clk 0:02:57.9]} 11. Be3 {[%clk 0:02:42.9]}
11... h5 {[%clk 0:02:58.2]} 12. Nb3 {[%clk 0:02:35.8]} 12... Qc7 {[%clk
0:02:54.9]} 13. Kb1 {[%clk 0:02:35.8]} 13... b5 {[%clk 0:02:54.3]} 14. Ne2
{[%clk 0:02:35]} 14... a5 {[%clk 0:02:37.1]} 15. Ned4 {[%clk 0:02:29.7]} 15...
Nxd4 {[%clk 0:02:28.3]} 16. Nxd4 {[%clk 0:02:27.5]} 16... Qb7 {[%clk 0:02:24.5]}
17. Bd3 {[%clk 0:02:06.8]} 17... b4 {[%clk 0:02:23.9]} 18. Qe2 {[%clk
0:01:59.4]} 18... a4 {[%clk 0:02:14.7]} 19. Bb5 {[%clk 0:01:53.3]} 19... a3
{[%clk 0:02:13.9]} 20. Bxd7+ {[%clk 0:01:51.1]} 20... Nxd7 {[%clk 0:02:12.7]}
21. Qb5 {[%clk 0:01:45]} 21... Rb8 {[%clk 0:01:45]} 22. Qxb7 {[%clk 0:01:19.9]}
22... Rxb7 {[%clk 0:01:45.9]} 23. Nc6 {[%clk 0:01:06.7]} 23... Nc5 {[%clk
0:01:41.9]} 24. e5 {[%clk 0:00:47.4]} 24... Na4 {[%clk 0:01:33.2]} 25. exd6
{[%clk 0:00:38.5]} 25... Bf6 {[%clk 0:01:33.2]} 26. Bd4 {[%clk 0:00:14.6]} 26...
Nxb2 {[%clk 0:01:10.5]} 27. Bxf6 {[%clk 0:00:05.5]} 27... gxf6 {[%clk
0:01:10.4]} 28. Rd4 {[%clk 0:00:04.2]} 28... Kd7 {[%clk 0:01:02.2]} 29. Nxb4
{[%clk 0:00:01.1]} 29... Rhb8 {[%clk 0:00:58]} 30. c3 {[%clk 0:00:01.3]} 30...
Rb6 {[%clk 0:00:53]} 0-1

[Event "*** Titled Tuesday Blitz"]
[Site "Chess.com"]
[Date "2021.03.02"]
[Round "4"]
[White "HouseOfDurin"]
[Black "KubaGepard"]
[Result "1-0"]
[WhiteElo "2180"]
[BlackElo "2389"]
[TimeControl "180+1"]
[EndTime "10:38:49 PST"]
[Termination "HouseOfDurin won by resignation"]

1. d4 {[%clk 0:03:00.9]} 1... d5 {[%clk 0:02:59.9]} 2. Bg5 {[%clk 0:03:00.9]}
2... f6 {[%clk 0:02:59.1]} 3. Bh4 {[%clk 0:03:00.7]} 3... Nc6 {[%clk 0:03:00]}
4. e3 {[%clk 0:02:57.9]} 4... Nh6 {[%clk 0:02:53.6]} 5. f3 {[%clk 0:02:57.6]}
5... Nf7 {[%clk 0:02:49.9]} 6. c4 {[%clk 0:02:56.3]} 6... e5 {[%clk 0:02:46.9]}
7. dxe5 {[%clk 0:02:53.8]} 7... Bb4+ {[%clk 0:02:44.1]} 8. Nc3 {[%clk
0:02:52.9]} 8... d4 {[%clk 0:02:41.8]} 9. exd4 {[%clk 0:02:49.6]} 9... Qxd4
{[%clk 0:02:42.2]} 10. Qxd4 {[%clk 0:02:45.4]} 10... Nxd4 {[%clk 0:02:43]} 11.
O-O-O {[%clk 0:02:42.3]} 11... Nf5 {[%clk 0:02:40]} 12. Nd5 {[%clk 0:02:23.1]}
12... Nxh4 {[%clk 0:02:33]} 13. Nxc7+ {[%clk 0:02:07.3]} 13... Ke7 {[%clk
0:02:25.1]} 14. exf6+ {[%clk 0:02:07.1]} 14... Kxf6 {[%clk 0:02:22.3]} 15. Nd5+
{[%clk 0:02:01.6]} 15... Kg6 {[%clk 0:02:18]} 16. Bd3+ {[%clk 0:01:58.6]} 16...
Bf5 {[%clk 0:02:17.1]} 17. Nxb4 {[%clk 0:01:48.5]} 17... Ne5 {[%clk 0:02:08.5]}
18. g3 {[%clk 0:01:33.7]} 18... Bxd3 {[%clk 0:02:04.9]} 19. Nxd3 {[%clk
0:01:21.4]} 19... Nxd3+ {[%clk 0:01:56.6]} 20. Rxd3 {[%clk 0:01:22.3]} 20... Nf5
{[%clk 0:01:56.4]} 21. Ne2 {[%clk 0:01:14.2]} 21... Rac8 {[%clk 0:01:54.9]} 22.
Nf4+ {[%clk 0:01:14.2]} 22... Kf6 {[%clk 0:01:53.2]} 23. b3 {[%clk 0:01:10.3]}
23... b5 {[%clk 0:01:47.8]} 24. Re1 {[%clk 0:00:49.6]} 24... bxc4 {[%clk
0:01:45.8]} 25. Re6+ {[%clk 0:00:50]} 25... Kf7 {[%clk 0:01:38.8]} 26. Rd7+
{[%clk 0:00:50.3]} 26... Kf8 {[%clk 0:01:37.7]} 27. bxc4 {[%clk 0:00:35.4]}
27... Rxc4+ {[%clk 0:01:21]} 28. Kb2 {[%clk 0:00:34.8]} 28... Rc8 {[%clk
0:01:20.7]} 29. Rxa7 {[%clk 0:00:30.4]} 29... g6 {[%clk 0:01:17.2]} 30. Rf6+
{[%clk 0:00:21.9]} 30... Kg8 {[%clk 0:01:17.1]} 31. Ne6 {[%clk 0:00:11.1]} 31...
Rb8+ {[%clk 0:01:11.5]} 32. Ka3 {[%clk 0:00:11.3]} 32... Re8 {[%clk 0:01:01.4]}
33. g4 {[%clk 0:00:10.5]} 33... Rxe6 {[%clk 0:01:01.3]} 34. Rxe6 {[%clk
0:00:11.3]} 34... Ng7 {[%clk 0:01:00.8]} 35. Ree7 {[%clk 0:00:10.7]} 35... h5
{[%clk 0:01:00.7]} 36. Rxg7+ {[%clk 0:00:10.5]} 36... Kf8 {[%clk 0:01:01]} 37.
Rgb7 {[%clk 0:00:09.8]} 1-0